bitfinex-derivatives/quotes_BNBF0:USTF0_20250603
["timestamp","ask_amount","ask_price","bid_price","bid_amount"]
[1748932321318,0.9099761,665.35,665.32,0.30060722]
[1748932321620,0.90980382,665.33,665.32,0.30060722]
[1748932321820,0.9099761,665.35,665.32,0.30060722]
[1748932322126,2.03058757,665.35,665.32,0.30060722]
[1748932322322,0.9099761,665.35,665.32,0.30060722]
[1748932341241,1.015,665.44,665.32,0.30060722]
[1748932352351,1.12049103,665.43,665.32,0.30060722]
[1748932353546,0.90998544,665.42,665.32,0.30060722]
[1748932353744,1.12049103,665.42,665.32,0.30060722]
[1748932353946,1.12049103,665.43,665.32,0.30060722]
[1748932354348,1.12049103,665.42,665.32,0.30060722]
[1748932354946,0.90998735,665.41,665.32,0.30060722]
[1748932355150,1.12049103,665.42,665.32,0.30060722]
[1748932355351,0.90998514,665.41,665.32,0.30060722]
[1748932355546,1.12049103,665.42,665.32,0.30060722]
[1748932356649,1.1204686,665.42,665.32,0.30060722]
[1748932359653,1.1204686,665.43,665.32,0.30060722]
[1748932360054,0.90985669,665.42,665.32,0.30060722]
[1748932360254,1.1204686,665.43,665.32,0.30060722]
[1748932360849,1.1204686,665.42,665.32,0.30060722]
[1748932362149,0.90985175,665.41,665.32,0.30060722]
[1748932362351,0.90985181,665.4,665.32,0.30060722]
[1748932362553,1.1204686,665.42,665.32,0.30060722]
[1748932362753,1.015,665.44,665.32,0.30060722]
[1748932362754,1.1204686,665.43,665.32,0.30060722]
[1748932363553,0.90985678,665.42,665.32,0.30060722]
[1748932363755,2.1354686,665.44,665.32,0.30060722]
[1748932364149,0.90985534,665.43,665.32,0.30060722]
[1748932364351,2.13551682,665.44,665.32,0.30060722]
[1748932366657,1.015,665.44,665.32,0.30060722]
[1748932366851,0.90980695,665.43,665.32,0.30060722]
[1748932367054,1.015,665.44,665.32,0.30060722]
[1748932367557,0.90972178,665.43,665.32,0.30060722]
[1748932367758,0.90972178,665.42,665.32,0.30060722]
[1748932367957,0.90970928,665.41,665.32,0.30060722]
[1748932368159,0.90971141,665.4,665.32,0.30060722]
[1748932368457,1.015,665.44,665.32,0.30060722]
[1748932369555,0.90967977,665.43,665.32,0.30060722]
[1748932369760,1.015,665.44,665.32,0.30060722]
[1748932371455,0.90952408,665.43,665.32,0.30060722]
[1748932371655,1.015,665.44,665.32,0.30060722]
[1748932372861,0.90952665,665.43,665.32,0.30060722]
[1748932373062,0.90952665,665.42,665.32,0.30060722]
[1748932373256,0.90952418,665.41,665.32,0.30060722]
[1748932373562,0.90946028,665.4,665.32,0.30060722]
[1748932373755,1.015,665.44,665.32,0.30060722]
[1748932373960,0.90946959,665.43,665.32,0.30060722]
[1748932374156,1.015,665.44,665.32,0.30060722]
[1748932374758,0.90947142,665.43,665.32,0.30060722]
[1748932374958,0.90947198,665.42,665.32,0.30060722]
[1748932375258,1.015,665.44,665.32,0.30060722]
[1748932375458,0.90947064,665.43,665.32,0.30060722]
[1748932375761,1.015,665.44,665.32,0.30060722]
[1748932376162,0.90947107,665.43,665.32,0.30060722]
[1748932376356,0.90947128,665.42,665.32,0.30060722]
[1748932376555,1.015,665.44,665.32,0.30060722]
[1748932376958,0.90946621,665.43,665.32,0.30060722]
[1748932377163,1.015,665.44,665.32,0.30060722]
[1748932377360,0.90946838,665.43,665.32,0.30060722]
[1748932377666,0.90946838,665.42,665.32,0.30060722]
[1748932377968,1.015,665.44,665.32,0.30060722]
[1748932378160,0.9094446,665.43,665.32,0.30060722]
[1748932378359,1.015,665.44,665.32,0.30060722]
[1748932378762,0.9094446,665.43,665.32,0.30060722]
[1748932379071,2.13597214,665.44,665.32,0.30060722]
[1748932379768,2.13653386,665.44,665.32,0.30060722]
[1748932380169,0.90945191,665.43,665.32,0.30060722]
[1748932380369,0.90945191,665.42,665.32,0.30060722]
[1748932380565,0.90945373,665.41,665.32,0.30060722]
[1748932380770,1.015,665.44,665.32,0.30060722]
[1748932380971,0.90943334,665.43,665.32,0.30060722]
[1748932381271,1.015,665.44,665.32,0.30060722]
[1748932381272,2.13653386,665.44,665.32,0.30060722]
[1748932381971,1.12153386,665.43,665.32,0.30060722]
[1748932382266,1.1217404,665.43,665.32,0.30060722]
[1748932382865,1.1217404,665.42,665.32,0.30060722]
[1748932383067,1.1217404,665.41,665.32,0.30060722]
[1748932384273,1.1217404,665.42,665.32,0.30060722]
[1748932384874,1.1217404,665.38,665.32,0.30060722]
[1748932385069,2.03109251,665.37,665.32,0.30060722]
[1748932385269,1.1217404,665.37,665.32,0.30060722]
[1748932385572,1.1217404,665.38,665.32,0.30060722]
[1748932385772,1.1217404,665.37,665.32,0.30060722]
[1748932385972,0.90940925,665.41,665.32,0.30060722]
[1748932386175,1.12147335,665.37,665.32,0.30060722]
[1748932386975,1.12147335,665.36,665.32,0.30060722]
[1748932387372,0.90929851,665.35,665.32,0.30060722]
[1748932387569,1.12147335,665.36,665.32,0.30060722]
[1748932387772,0.90931353,665.35,665.32,0.30060722]
[1748932387970,0.90833366,665.34,665.32,0.30060722]
[1748932388173,1.12147335,665.36,665.32,0.30060722]
[1748932388973,1.12147335,665.37,665.32,0.30060722]
[1748932389175,1.12147335,665.35,665.32,0.30060722]
[1748932389775,0.90940925,665.41,665.32,0.30060722]
[1748932390071,1.12075242,665.35,665.32,0.30060722]
[1748932390873,1.12075242,665.34,665.32,0.30060722]
[1748932393278,1.12075242,665.35,665.32,0.30060722]
[1748932393479,1.12075242,665.34,665.32,0.30060722]
[1748932393673,1.12025369,665.35,665.32,0.30060722]
[1748932394174,1.12025369,665.33,665.32,0.30060722]
[1748932394379,1.12025369,665.34,665.32,0.30060722]
[1748932394573,1.12025369,665.33,665.32,0.30060722]
[1748932394774,1.12025369,665.34,665.32,0.30060722]
[1748932396678,1.12025369,665.35,665.32,0.30060722]
[1748932397285,2.02802829,665.34,665.32,0.30060722]
[1748932397485,1.12025369,665.34,665.32,0.30060722]
[1748932397685,0.90776091,665.33,665.32,0.30060722]
[1748932397886,1.12009088,665.34,665.32,0.30060722]
[1748932398480,0.90775886,665.33,665.32,0.30060722]
[1748932398789,1.12001786,665.35,665.32,0.30060722]
[1748932399285,1.12001786,665.37,665.32,0.30060722]
[1748932399485,1.12001786,665.36,665.32,0.30060722]
[1748932399685,0.90775849,665.35,665.32,0.30060722]
[1748932399885,1.12001786,665.36,665.32,0.30060722]
[1748932400187,0.90775997,665.35,665.32,0.30060722]
[1748932400387,0.90776039,665.34,665.32,0.30060722]
[1748932400685,1.12001786,665.37,665.32,0.30060722]
[1748932400881,0.90775987,665.36,665.32,0.30060722]
[1748932401187,0.90775964,665.35,665.32,0.30060722]
[1748932401380,0.90940925,665.41,665.32,0.30060722]
[1748932401580,2.02937411,665.41,665.32,0.30060722]
[1748932402085,0.90774903,665.4,665.32,0.30060722]
[1748932402280,2.02937411,665.41,665.32,0.30060722]
[1748932403584,0.90774429,665.4,665.32,0.30060722]
[1748932403888,2.02770915,665.4,665.32,0.30060722]
[1748932404088,2.02937411,665.41,665.32,0.30060722]
[1748932405491,2.02929971,665.41,665.32,0.30060722]
[1748932405687,0.90773307,665.4,665.32,0.30060722]
[1748932405885,0.90773307,665.39,665.32,0.30060722]
[1748932406089,0.90773307,665.38,665.32,0.30060722]
[1748932406287,0.90774393,665.37,665.32,0.30060722]
[1748932406488,2.02929971,665.41,665.32,0.30060722]
[1748932406688,0.90766707,665.4,665.32,0.30060722]
[1748932406887,2.02929971,665.41,665.32,0.30060722]
[1748932407394,0.90767579,665.4,665.32,0.30060722]
[1748932407589,0.90940925,665.41,665.32,0.30060722]
[1748932407590,2.02929971,665.41,665.32,0.30060722]
[1748932407987,0.90940925,665.41,665.32,0.30060722]
[1748932408894,0.90772526,665.4,665.32,0.30060722]
[1748932409193,0.90940925,665.41,665.32,0.30060722]
[1748932409588,0.90792563,665.4,665.32,0.30060722]
[1748932409789,0.90940925,665.41,665.32,0.30060722]
[1748932409993,0.90793695,665.4,665.32,0.30060722]
[1748932410287,0.90793695,665.39,665.32,0.30060722]
[1748932410494,0.90793695,665.38,665.32,0.30060722]
[1748932410693,0.90794572,665.37,665.32,0.30060722]
[1748932410995,0.90940925,665.41,665.32,0.30060722]
[1748932411794,0.90858532,665.4,665.32,0.30060722]
[1748932411995,2.02940523,665.41,665.32,0.30060722]
[1748932412597,0.90858555,665.4,665.32,0.30060722]
[1748932412797,0.90858559,665.39,665.32,0.30060722]
[1748932412999,2.0296149,665.41,665.32,0.30060722]
[1748932413492,0.90940925,665.41,665.32,0.30060722]
[1748932414698,0.9086258,665.4,665.32,0.30060722]
[1748932414899,0.90940925,665.41,665.32,0.30060722]
[1748932415699,0.90862687,665.4,665.32,0.30060722]
[1748932415999,0.90940925,665.41,665.32,0.30060722]
[1748932416806,0.9086266,665.4,665.32,0.30060722]
[1748932417000,0.90940925,665.41,665.32,0.30060722]
[1748932417696,0.90863192,665.4,665.32,0.30060722]
[1748932418002,0.90940925,665.41,665.32,0.30060722]
[1748932418998,0.9086468,665.4,665.32,0.30060722]
[1748932419200,0.90940925,665.41,665.32,0.30060722]
[1748932419400,0.9086513,665.4,665.32,0.30060722]
[1748932419600,0.90940925,665.41,665.32,0.30060722]
[1748932419801,0.90865086,665.4,665.32,0.30060722]
[1748932420102,0.90940925,665.41,665.32,0.30060722]
[1748932423897,2.02968318,665.41,665.32,0.30060722]
[1748932424502,2.02961229,665.41,665.32,0.30060722]
[1748932426709,1.12020304,665.4,665.32,0.30060722]
[1748932432005,0.90940925,665.41,665.32,0.30060722]
[1748932432203,2.02967808,665.41,665.32,0.30060722]
[1748932433206,0.90940925,665.41,665.32,0.30060722]
[1748932434606,2.02970466,665.41,665.32,0.30060722]
[1748932434806,0.90940925,665.41,665.32,0.30060722]
[1748932437512,2.02972472,665.41,665.32,0.30060722]
[1748932441912,1.12031547,665.4,665.32,0.30060722]
[1748932442315,1.12046877,665.4,665.32,0.30060722]
[1748932442515,2.02987802,665.41,665.32,0.30060722]
[1748932442912,0.90940925,665.41,665.32,0.30060722]
[1748932447321,0.90940925,665.41,665.32,0.30060722]
[1748932511368,1.015,665.44,665.32,0.30060722]
[1748932532586,0.91139088,665.43,665.32,0.30060722]
[1748932532782,1.015,665.44,665.32,0.30060722]
[1748932534487,0.91112697,665.43,665.32,0.30060722]
[1748932534681,1.015,665.44,665.32,0.30060722]
[1748932534882,0.91112922,665.43,665.32,0.30060722]
[1748932535085,0.91113859,665.42,665.32,0.30060722]
[1748932535287,1.015,665.44,665.32,0.30060722]
[1748932535686,0.91113289,665.43,665.32,0.30060722]
[1748932535885,1.015,665.44,665.32,0.30060722]
[1748932557801,0.91011157,665.43,665.32,0.30060722]
[1748932558002,1.015,665.44,665.32,0.30060722]
[1748932558603,0.91010589,665.43,665.32,0.30060722]
[1748932558797,0.910039,665.42,665.32,0.30060722]
[1748932559104,0.91000326,665.41,665.32,0.30060722]
[1748932559406,1.015,665.44,665.32,0.30060722]
[1748932560898,0.90996325,665.43,665.32,0.30060722]
[1748932561104,1.015,665.44,665.32,0.30060722]
[1748932561298,0.90996328,665.43,665.32,0.30060722]
[1748932561498,0.90996427,665.42,665.32,0.30060722]
[1748932561703,1.015,665.44,665.32,0.30060722]
[1748932561904,0.9099673,665.43,665.32,0.30060722]
[1748932562203,1.015,665.44,665.32,0.30060722]
[1748932563305,0.90996819,665.43,665.32,0.30060722]
[1748932563503,1.015,665.44,665.32,0.30060722]
[1748932564105,0.90978094,665.43,665.32,0.30060722]
[1748932564307,1.015,665.44,665.32,0.30060722]
[1748932564706,0.90978446,665.43,665.32,0.30060722]
[1748932564905,1.015,665.44,665.32,0.30060722]
[1748932565807,0.90977626,665.43,665.32,0.30060722]
[1748932566108,0.90979788,665.42,665.32,0.30060722]
[1748932566309,1.015,665.44,665.32,0.30060722]
[1748932566703,0.90990117,665.43,665.32,0.30060722]
[1748932566902,0.90989181,665.42,665.32,0.30060722]
[1748932567103,1.015,665.44,665.32,0.30060722]
[1748932567506,0.90990853,665.43,665.32,0.30060722]
[1748932567707,1.015,665.44,665.32,0.30060722]
[1748932568106,0.90990699,665.43,665.32,0.30060722]
[1748932568405,1.015,665.44,665.32,0.30060722]
[1748932569604,0.91012966,665.43,665.32,0.30060722]
[1748932569805,1.015,665.44,665.32,0.30060722]
[1748932572208,0.91019452,665.43,665.32,0.30060722]
[1748932572410,1.015,665.44,665.32,0.30060722]
[1748932572708,0.9101898,665.43,665.32,0.30060722]
[1748932572911,1.015,665.44,665.32,0.30060722]
[1748932573110,0.91018351,665.43,665.32,0.30060722]
[1748932573309,1.015,665.44,665.32,0.30060722]
[1748932574214,0.91013488,665.43,665.32,0.30060722]
[1748932574413,1.015,665.44,665.32,0.30060722]
[1748932575616,0.910135,665.43,665.32,0.30060722]
[1748932575916,1.015,665.44,665.32,0.30060722]
[1748932577010,0.91013908,665.43,665.32,0.30060722]
[1748932577212,1.015,665.44,665.32,0.30060722]
[1748932577415,2.13589308,665.44,665.32,0.30060722]
[1748932577716,0.91012945,665.43,665.32,0.30060722]
[1748932577910,0.91012945,665.42,665.32,0.30060722]
[1748932578114,2.13589308,665.44,665.32,0.30060722]
[1748932578416,1.015,665.44,665.32,0.30060722]
[1748932578614,0.91013514,665.43,665.32,0.30060722]
[1748932578813,0.91013514,665.42,665.32,0.30060722]
[1748932579014,0.91014052,665.41,665.32,0.30060722]
[1748932579214,1.015,665.44,665.32,0.30060722]
[1748932579421,2.13602409,665.44,665.32,0.30060722]
[1748932580115,1.12098927,665.43,665.32,0.30060722]
[1748932580514,2.03107165,665.42,665.32,0.30060722]
[1748932580715,1.12098927,665.42,665.32,0.30060722]
[1748932581414,0.91008892,665.41,665.32,0.30060722]
[1748932581619,0.91009009,665.4,665.32,0.30060722]
[1748932581816,1.12098927,665.42,665.32,0.30060722]
[1748932582320,0.91009009,665.41,665.32,0.30060722]
[1748932582520,1.12098927,665.42,665.32,0.30060722]
[1748932583017,0.90999215,665.41,665.32,0.30060722]
[1748932583220,1.12098927,665.42,665.32,0.30060722]
[1748932584024,0.90998573,665.41,665.32,0.30060722]
[1748932584223,1.12097904,665.41,665.32,0.30060722]
[1748932585820,1.12097904,665.42,665.32,0.30060722]
[1748932586325,1.12097904,665.43,665.32,0.30060722]
[1748932586526,2.0309729,665.42,665.32,0.30060722]
[1748932586723,1.12097904,665.42,665.32,0.30060722]
[1748932587129,0.90999296,665.41,665.32,0.30060722]
[1748932587326,1.12097904,665.42,665.32,0.30060722]
[1748932587723,1.015,665.44,665.32,0.30060722]
[1748932587929,1.12130411,665.42,665.32,0.30060722]
[1748932588326,1.12130411,665.41,665.32,0.30060722]
[1748932588729,1.12130411,665.42,665.32,0.30060722]
[1748932588925,0.90999194,665.41,665.32,0.30060722]
[1748932589129,1.12130411,665.42,665.32,0.30060722]
[1748932589323,0.90999079,665.41,665.32,0.30060722]
[1748932589530,1.12130411,665.42,665.32,0.30060722]
[1748932589731,0.90999068,665.41,665.32,0.30060722]
[1748932589930,0.90998537,665.4,665.32,0.30060722]
[1748932590230,1.12130411,665.41,665.32,0.30060722]
[1748932591731,1.12184982,665.41,665.32,0.30060722]
[1748932593532,1.12189308,665.41,665.32,0.30060722]
[1748932595729,1.12185155,665.41,665.32,0.30060722]
[1748932596133,1.12185155,665.39,665.32,0.30060722]
[1748932596326,1.12185155,665.4,665.32,0.30060722]
[1748932596732,1.12185155,665.41,665.32,0.30060722]
[1748932597227,0.90988601,665.4,665.32,0.30060722]
[1748932597427,0.90988601,665.39,665.32,0.30060722]
[1748932597732,0.90988602,665.38,665.32,0.30060722]
[1748932597935,0.90988602,665.37,665.32,0.30060722]
[1748932598133,0.90988845,665.36,665.32,0.30060722]
[1748932598330,1.12185155,665.41,665.32,0.30060722]
[1748932598835,1.12185155,665.39,665.32,0.30060722]
[1748932599136,0.9098919,665.38,665.32,0.30060722]
[1748932599329,1.12185155,665.39,665.32,0.30060722]
[1748932599531,1.12182214,665.39,665.32,0.30060722]
[1748932599931,1.12182214,665.38,665.32,0.30060722]
[1748932600134,1.12182214,665.39,665.32,0.30060722]
[1748932601129,0.90989135,665.38,665.32,0.30060722]
[1748932601330,1.12182214,665.39,665.32,0.30060722]
[1748932601534,0.90989135,665.38,665.32,0.30060722]
[1748932601736,1.12182214,665.39,665.32,0.30060722]
[1748932602134,0.90988894,665.38,665.32,0.30060722]
[1748932602330,1.12182214,665.39,665.32,0.30060722]
[1748932602737,0.90988887,665.38,665.32,0.30060722]
[1748932602940,0.90989248,665.37,665.32,0.30060722]
[1748932603139,0.90989372,665.36,665.32,0.30060722]
[1748932603335,1.015,665.44,665.32,0.30060722]
[1748932603532,1.12183739,665.39,665.32,0.30060722]
[1748932605240,0.90996588,665.38,665.32,0.30060722]
[1748932605434,0.9099841,665.37,665.32,0.30060722]
[1748932605635,0.90996588,665.38,665.32,0.30060722]
[1748932606339,2.03180327,665.38,665.32,0.30060722]
[1748932606640,1.12183739,665.37,665.32,0.30060722]
[1748932606840,1.12183739,665.36,665.32,0.30060722]
[1748932607435,1.1220578,665.36,665.32,0.30060722]
[1748932611143,0.90996588,665.38,665.32,0.30060722]
[1748932611444,1.12215199,665.36,665.32,0.30060722]
[1748932613249,0.90996588,665.38,665.32,0.30060722]
[1748932613250,1.12215199,665.35,665.32,0.30060722]
[1748932614254,1.12215199,665.37,665.32,0.30060722]
[1748932615050,0.90996588,665.38,665.32,0.30060722]
[1748932615247,1.12228208,665.37,665.32,0.30060722]
[1748932619154,1.12228208,665.36,665.32,0.30060722]
[1748932619450,1.12237085,665.36,665.32,0.30060722]
[1748932620155,1.12237085,665.37,665.32,0.30060722]
[1748932620749,1.12237085,665.36,665.32,0.30060722]
[1748932621352,1.12237085,665.37,665.32,0.30060722]
[1748932622152,1.12226297,665.36,665.32,0.30060722]
[1748932622949,0.90996588,665.38,665.32,0.30060722]
[1748932623558,0.90990783,665.37,665.32,0.30060722]
[1748932623857,0.90991008,665.36,665.32,0.30060722]
[1748932624058,0.90996588,665.38,665.32,0.30060722]
[1748932731446,1.015,665.44,665.32,0.30060722]
[1748932818503,1.015,665.44,665.32,1.42471574]
[1748932818702,1.015,665.44,665.33,1.12410852]
[1748932818898,1.015,665.44,665.34,0.30059819]
[1748932819104,1.12231185,665.48,665.34,0.30059819]
[1748932821706,0.843,665.47,665.34,0.30059819]
[1748932828010,0.843,665.47,665.34,0.30059819]
[1748932828610,0.843,665.47,665.35,1.1231012]
[1748932828804,0.843,665.47,665.36,0.30058915]
[1748932831412,0.843,665.47,665.41,1.12297882]
[1748932831615,0.843,665.47,665.46,0.47726288]
[1748932831807,0.843,665.47,665.46,0.77780686]
[1748932832113,0.843,665.47,665.46,0.30054398]
[1748932836616,2.911,665.62,665.46,0.30054398]
[1748932836816,2.911,665.62,665.48,1.12113558]
[1748932837018,2.911,665.62,665.49,0.30053043]
[1748932839825,1.049,665.61,665.49,0.30053043]
[1748932871642,1.049,665.61,665.53,1.12059611]
[1748932872040,2.052,665.77,665.53,1.12059611]
[1748932872235,2.052,665.77,665.64,1.12036849]
[1748932872434,2.052,665.77,665.65,0.30045819]
[1748932874434,2.853,665.77,665.65,0.30045819]
[1748932875142,2.853,665.77,665.65,1.42082668]
[1748932875643,2.853,665.77,665.65,0.30045819]
[1748932876842,2.853,665.77,665.65,1.42082668]
[1748932877242,2.853,665.77,665.65,0.30045819]
[1748932880747,1.645,665.77,665.65,0.30045819]
[1748932908062,0.801,665.77,665.65,0.30045819]
[1748933002847,0.91112548,665.76,665.65,0.30045819]
[1748933005045,0.91081756,665.75,665.65,0.30045819]
[1748933005238,0.91112548,665.76,665.65,0.30045819]
[1748933005746,0.91081267,665.75,665.65,0.30045819]
[1748933005939,0.91081264,665.74,665.65,0.30045819]
[1748933006141,0.91112548,665.76,665.65,0.30045819]
[1748933006343,0.91081228,665.75,665.65,0.30045819]
[1748933006546,0.91112548,665.76,665.65,0.30045819]
[1748933009848,0.91003454,665.75,665.65,0.30045819]
[1748933010049,0.91003448,665.74,665.65,0.30045819]
[1748933010244,0.91003032,665.73,665.65,0.30045819]
[1748933010549,0.91112548,665.76,665.65,0.30045819]
[1748933010949,0.91003346,665.75,665.65,0.30045819]
[1748933011151,0.91112548,665.76,665.65,0.30045819]
[1748933011343,0.91003347,665.75,665.65,0.30045819]
[1748933011545,0.91003347,665.74,665.65,0.30045819]
[1748933011744,0.91112548,665.76,665.65,0.30045819]
[1748933012351,0.91030329,665.75,665.65,0.30045819]
[1748933012650,0.91112548,665.76,665.65,0.30045819]
[1748933013646,0.91031122,665.75,665.65,0.30045819]
[1748933013844,0.91031108,665.74,665.65,0.30045819]
[1748933014048,0.91112548,665.76,665.65,0.30045819]
[1748933014948,0.910307,665.75,665.65,0.30045819]
[1748933015149,0.91112548,665.76,665.65,0.30045819]
[1748933015746,0.91030598,665.75,665.65,0.30045819]
[1748933015950,0.91112548,665.76,665.65,0.30045819]
[1748933016854,0.90989333,665.75,665.65,0.30045819]
[1748933017047,0.91112548,665.76,665.65,0.30045819]
[1748933017653,0.90979772,665.75,665.65,0.30045819]
[1748933017858,0.91112548,665.76,665.65,0.30045819]
[1748933018348,0.90977419,665.75,665.65,0.30045819]
[1748933018549,0.91112548,665.76,665.65,0.30045819]
[1748933019850,0.9097758,665.75,665.65,0.30045819]
[1748933020050,0.91112548,665.76,665.65,0.30045819]
[1748933020457,0.90976834,665.75,665.65,0.30045819]
[1748933020650,0.91112548,665.76,665.65,0.30045819]
[1748933020850,0.90976721,665.75,665.65,0.30045819]
[1748933021053,0.91112548,665.76,665.65,0.30045819]
[1748933022450,0.90976097,665.75,665.65,0.30045819]
[1748933151873,0.801,665.77,665.65,0.30045819]
[1748933234153,1.49157316,666.07,665.65,0.30045819]
[1748933234346,0.91050571,666.06,665.65,0.30045819]
[1748933234548,1.49157316,666.07,665.65,0.30045819]
[1748933236154,1.49157316,666.06,665.65,0.30045819]
[1748933236356,0.91050434,666.05,665.65,0.30045819]
[1748933236553,1.49157316,666.06,665.65,0.30045819]
[1748933236749,0.91050186,666.05,665.65,0.30045819]
[1748933237050,2.879,666.05,665.65,0.30045819]
[1748933237451,0.91050235,666.04,665.65,0.30045819]
[1748933237655,2.879,666.05,665.65,0.30045819]
[1748933238254,1.31,666.04,665.65,0.30045819]
[1748933239958,0.91039865,666.03,665.65,0.30045819]
[1748933240159,0.91039498,666.02,665.65,0.30045819]
[1748933240460,1.31,666.04,665.65,0.30045819]
[1748933241255,0.91058741,666.03,665.65,0.30045819]
[1748933241459,0.91059029,666.02,665.65,0.30045819]
[1748933241663,1.31,666.04,665.65,0.30045819]
[1748933242464,0.91059166,666.03,665.65,0.30045819]
[1748933242659,1.31,666.04,665.65,0.30045819]
[1748933242862,0.91058712,666.03,665.65,0.30045819]
[1748933243560,0.91059237,666.02,665.65,0.30045819]
[1748933243760,0.91058712,666.03,665.65,0.30045819]
[1748933243965,0.91059598,666.01,665.65,0.30045819]
[1748933244158,0.91058712,666.03,665.65,0.30045819]
[1748933245066,0.91058712,666.03,665.65,1.42539454]
[1748933245364,0.91058712,666.03,665.65,0.30045819]
[1748933245965,0.91058712,666.03,665.66,1.12433383]
[1748933246165,0.91058712,666.03,665.67,0.30044917]
[1748933259675,0.984,666.02,665.67,0.30044917]
[1748933269386,1.235,666.01,665.67,0.30044917]
[1748933270680,0.991,666.0,665.67,0.30044917]
[1748933291006,1.113,665.99,665.67,0.30044917]
[1748933300207,1.175,665.98,665.67,0.30044917]
[1748933300814,1.047,665.97,665.67,0.30044917]
[1748933308815,0.922,665.96,665.67,0.30044917]
[1748933309323,0.922,665.96,665.67,1.4242098]
[1748933310422,0.922,665.96,665.67,1.42412784]
[1748933310922,0.922,665.96,665.68,1.12367867]
[1748933311121,0.922,665.96,665.69,0.30044014]
[1748933312825,0.922,665.96,665.69,1.42411881]
[1748933314221,0.922,665.96,665.69,1.42413467]
[1748933315720,0.922,665.96,665.7,1.12369453]
[1748933315925,0.922,665.96,665.71,0.30043111]
[1748933320928,1.238,665.99,665.71,0.30043111]
[1748933321634,2.263,665.99,665.71,0.30043111]
[1748933322233,1.062,665.98,665.71,0.30043111]
[1748933344356,0.91058712,666.03,665.71,0.30043111]
[1748933347356,1.17,666.02,665.71,0.30043111]
[1748933348657,2.087,666.01,665.71,0.30043111]
[1748933349762,1.09,666.0,665.71,0.30043111]
[1748933366488,1.09,666.0,665.73,1.12392703]
[1748933366692,2.087,666.01,665.74,0.30041758]
[1748933367401,2.087,666.01,665.8,1.12392703]
[1748933367601,2.087,666.01,665.81,0.30038599]
[1748933369803,0.936,666.0,665.81,0.30038599]
[1748933370900,0.936,666.0,665.81,1.42431302]
[1748933371103,0.936,666.0,665.83,1.12392703]
[1748933371303,0.936,666.0,665.58,2.25129606]
[1748933371304,0.936,666.0,665.84,0.30037246]
[1748933392815,1.088,666.01,665.84,0.30037246]
[1748933395320,0.964,666.0,665.84,0.30037246]
[1748933412536,3.24,666.12,665.84,0.30037246]
[1748933414933,0.917,666.11,665.84,0.30037246]
[1748933421240,0.917,666.11,665.84,1.42195651]
[1748933421442,0.917,666.11,665.85,0.47726288]
[1748933421641,0.917,666.11,665.86,0.30036343]
[1748933428554,0.917,666.11,665.91,1.12367657]
[1748933428748,0.917,666.11,665.92,0.30033637]
[1748933434959,1.957,666.12,665.92,0.30033637]
[1748933438155,1.273,666.11,665.92,0.30033637]
[1748933444164,1.273,666.11,665.96,1.12383732]
[1748933444459,1.273,666.11,665.97,0.30031382]
[1748933454065,0.851,666.2,665.97,0.30031382]
[1748933457870,1.237,666.19,665.97,0.30031382]
[1748933485896,3.214,666.25,665.97,0.30031382]
[1748933487196,3.214,666.25,665.97,1.4224835]
[1748933487396,3.214,666.25,665.97,0.30031382]
[1748933487991,3.214,666.25,665.97,1.42228967]
[1748933488194,3.214,666.25,665.97,1.42226482]
[1748933488493,3.214,666.25,665.98,1.121951]
[1748933488690,1.273,666.24,665.99,0.3003048]
[1748933496703,1.273,666.24,665.99,1.42163401]
[1748933496904,1.273,666.24,666.02,1.12132921]
[1748933497104,1.273,666.24,666.03,0.30028677]
[1748933498707,1.273,666.24,666.04,1.12132921]
[1748933498908,1.273,666.24,666.05,0.30027775]
[1748933515713,1.352,666.27,666.05,0.30027775]
[1748933518821,1.23,666.26,666.05,0.30027775]
[1748933540741,1.23,666.26,666.05,1.42296368]
[1748933540938,2.782,666.33,666.06,1.12268593]
[1748933541142,2.782,666.33,666.07,0.30026874]
[1748933543141,2.782,666.33,666.08,1.12268593]
[1748933543437,2.782,666.33,666.09,0.30025972]
[1748933544638,1.068,666.32,666.09,0.30025972]
[1748933550747,1.068,666.32,666.09,1.42284803]
[1748933551753,1.068,666.32,666.09,1.42282967]
[1748933554747,1.068,666.32,666.1,1.12256995]
[1748933554946,1.068,666.32,666.11,0.3002507]
[1748933556149,1.068,666.32,666.11,1.42282065]
[1748933556753,1.834,666.33,666.11,1.42282065]
[1748933557554,1.834,666.33,666.11,0.3002507]
[1748933558760,1.834,666.33,666.11,1.42282065]
[1748933558960,1.834,666.33,666.11,0.3002507]
[1748933559255,1.031,666.32,666.11,0.3002507]
[1748933576169,1.031,666.32,666.11,1.42274589]
[1748933578668,1.031,666.32,666.11,0.3002507]